fUST/lending_fUST_20250203
["ID","MTS","AMOUNT","RATE_DAILY","PERIOD"]
[351422768,1738565444335,-500.0,0.00016575,2]
[351422769,1738565444345,-242.39662894,0.00016575,2]
[351422770,1738565444355,-500.0,0.00016575,2]
[351422771,1738565444365,-3130.13,0.00016575,2]
[351422772,1738565444374,-515.62,0.00016575,2]
[351422773,1738565444384,-500.0,0.00016575,2]
[351422774,1738565444394,-2749.25,0.00016575,2]
[351422775,1738565444404,-641.92,0.00016575,2]
[351422776,1738565444413,-757.87,0.00016575,2]
[351422777,1738565444423,-500.0,0.00016575,2]
[351422778,1738565444433,-500.0,0.00016575,2]
[351422779,1738565444443,-500.0,0.00016575,2]
[351422780,1738565444452,-500.0,0.00016575,2]
[351422781,1738565444462,-628.82,0.00016575,2]
[351422782,1738565444472,-845.02,0.00016575,2]
[351422783,1738565444482,-2803.11,0.00016575,2]
[351422784,1738565444491,-1000.0,0.00016575,7]
[351422785,1738565444500,-500.0,0.00016575,2]
[351422786,1738565444509,-500.0,0.00016575,2]
[351422787,1738565444519,-500.0,0.00016575,2]
[351422788,1738565444528,-500.0,0.00016575,2]
[351422789,1738565444538,-500.0,0.00016575,2]
[351422790,1738565444547,-500.0,0.00016575,2]
[351422791,1738565444557,-550.39548246,0.00016575,2]
[351422792,1738565444567,-681.79,0.00016575,2]
[351422793,1738565444577,-500.0,0.00016575,2]
[351422794,1738565444587,-1102.36,0.00016575,2]
[351422795,1738565444598,-500.0,0.00016575,2]
[351422796,1738565444608,-500.0,0.00016575,2]
[351422797,1738565444618,-604.83,0.00016575,2]
[351422798,1738565444627,-500.0,0.00016575,2]
[351422799,1738565444637,-151.11971487,0.00016593,2]
[351422800,1738565444647,-151.0,0.000166,2]
[351422801,1738565444657,-151.0,0.000166,2]
[351422802,1738565444666,-318.8548149,0.000166,2]
[351422803,1738565444675,-151.0,0.000166,2]
[351422804,1738565444685,-151.0,0.000166,2]
[351422805,1738565444694,-151.0,0.000166,2]
[351422806,1738565444703,-154.4720971,0.000166,2]
[351422807,1738565444713,-151.0,0.000166,2]
[351422808,1738565444723,-151.0,0.000166,2]
[351422809,1738565444733,-151.0,0.000166,2]
[351422810,1738565444743,-151.0,0.000166,2]
[351422811,1738565444753,-151.0,0.000166,2]
[351422812,1738565444763,-718.37006671,0.00016612,2]
[351422813,1738565444773,-13257.15227901,0.00016673,2]
[351422814,1738565444783,-151.0,0.000167,2]
[351422815,1738565444794,-151.0,0.000167,2]
[351422816,1738565444803,-151.0,0.000167,2]
[351422817,1738565444813,-151.0,0.000167,2]
[351422818,1738565444822,-151.0,0.000167,2]
[351422819,1738565444832,-151.0,0.000167,2]
[351422820,1738565444842,-151.0,0.000167,2]
[351422821,1738565444852,-151.0,0.000167,2]
[351422822,1738565444861,-500.0,0.00016712,2]
[351422823,1738565444871,-500.0,0.00016712,2]
[351422824,1738565444881,-500.0,0.00016712,2]
[351422825,1738565444890,-614.32,0.00016712,2]
[351422826,1738565444902,-500.0,0.00016712,2]
[351422827,1738565444911,-500.0,0.00016712,2]
[351422828,1738565444921,-500.0,0.00016712,2]
[351422829,1738565444931,-500.0,0.00016712,2]
[351422830,1738565444942,-618.66877122,0.00016712,2]
[351422831,1738565444953,-500.0,0.00016712,2]
[351422832,1738565444963,-500.0,0.00016712,2]
[351422833,1738565444973,-500.0,0.00016712,2]
[351422834,1738565444983,-500.0,0.00016712,2]
[351422835,1738565444993,-500.0,0.00016712,2]
[351422836,1738565445003,-500.0,0.00016712,2]
[351422837,1738565445012,-500.0,0.00016712,2]
[351422838,1738565445023,-500.0,0.00016712,2]
[351422839,1738565445033,-500.0,0.00016712,2]
[351422840,1738565445044,-500.0,0.00016712,2]
[351422841,1738565445055,-500.0,0.00016712,2]
[351422842,1738565445066,-715.32,0.00016712,2]
[351422843,1738565445076,-500.0,0.00016712,2]
[351422844,1738565445089,-500.0,0.00016712,2]
[351422845,1738565445099,-500.0,0.00016712,2]
[351422846,1738565445109,-500.0,0.00016712,2]
[351422847,1738565445121,-500.0,0.00016712,2]
[351422848,1738565445131,-500.0,0.00016712,2]
[351422849,1738565445142,-500.0,0.00016712,2]
[351422850,1738565445157,-500.0,0.00016712,2]
[351422851,1738565445167,-500.0,0.00016712,2]
[351422852,1738565445176,-500.0,0.00016712,2]
[351422853,1738565445187,-345.71287339,0.00016712,2]
[351422854,1738565445197,-500.0,0.00016712,2]
[351422855,1738565445207,-500.0,0.00016712,2]
[351422856,1738565445218,-545.81100596,0.00016712,5]
[351422857,1738565445228,-500.0,0.00016712,2]
[351422858,1738565445239,-500.0,0.00016712,2]
[351422859,1738565445249,-500.0,0.00016712,2]
[351422860,1738565445259,-500.0,0.00016712,2]
[351422861,1738565445268,-500.0,0.00016712,2]
[351422862,1738565445278,-500.0,0.00016712,2]
[351422863,1738565445289,-610.32,0.00016712,2]
[351422864,1738565445301,-500.0,0.00016712,2]
[351422865,1738565445311,-500.0,0.00016712,2]
[351422866,1738565445321,-500.0,0.00016712,2]
[351422867,1738565445331,-500.0,0.00016712,2]
[351422868,1738565445340,-500.0,0.00016712,2]
[351422869,1738565445350,-500.0,0.00016712,2]
[351422870,1738565445359,-534.91,0.00016712,2]
[351422871,1738565445369,-986.36,0.00016712,2]
[351422872,1738565445378,-500.0,0.00016712,2]
[351422873,1738565445388,-500.0,0.00016712,2]
[351422874,1738565445402,-516.87651909,0.00016712,2]
[351422875,1738565445412,-500.0,0.00016712,2]
[351422876,1738565445421,-500.0,0.00016712,2]
[351422877,1738565445430,-500.0,0.00016712,2]
[351422878,1738565445440,-500.0,0.00016712,2]
[351422879,1738565445450,-859.15,0.00016712,2]
[351422880,1738565445459,-500.0,0.00016712,2]
[351422881,1738565445468,-500.0,0.00016712,2]
[351422882,1738565445477,-500.0,0.00016712,2]
[351422883,1738565445608,-500.0,0.00016712,2]
[351422884,1738565445617,-500.0,0.00016712,2]
[351422885,1738565445627,-500.0,0.00016712,2]
[351422886,1738565445636,-500.0,0.00016712,2]
[351422887,1738565445646,-500.0,0.00016712,2]
[351422888,1738565445658,-500.0,0.00016712,2]
[351422890,1738565445667,-500.0,0.00016712,2]
[351422892,1738565445677,-500.0,0.00016712,2]
[351422894,1738565445687,-500.0,0.00016712,2]
[351422896,1738565445697,-500.0,0.00016712,2]
[351422897,1738565445707,-500.0,0.00016712,2]
[351422898,1738565445716,-500.0,0.00016712,2]
[351422899,1738565445726,-662.49,0.00016712,2]
[351422900,1738565445736,-500.0,0.00016712,2]
[351422901,1738565445746,-500.0,0.00016712,2]
[351422902,1738565445755,-1005.05697971,0.00016712,2]
[351422903,1738565445766,-689.94,0.00016712,2]
[351422904,1738565445776,-577.12,0.00016712,2]
[351422905,1738565445785,-500.0,0.00016712,2]
[351422906,1738565445795,-500.0,0.00016712,2]
[351422907,1738565445804,-296.79410167,0.00016712,2]
[351422908,1738565445813,-500.0,0.00016712,2]
[351422909,1738565445823,-1084.65,0.00016712,2]
[351422910,1738565445832,-500.0,0.00016712,2]
[351422911,1738565445842,-500.0,0.00016712,2]
[351422912,1738565445851,-451.37214186,0.00016712,2]
[351422913,1738565445860,-500.0,0.00016712,2]
[351422914,1738565445870,-511.14,0.00016712,2]
[351422915,1738565445879,-500.0,0.00016712,2]
[351422916,1738565445888,-500.0,0.00016712,2]
[351422917,1738565445900,-634.77,0.00016712,2]
[351422918,1738565445909,-598.39,0.00016712,2]
[351422919,1738565445919,-500.0,0.00016712,2]
[351422920,1738565445929,-500.0,0.00016712,2]
[351422921,1738565445938,-500.0,0.00016712,2]
[351422922,1738565445947,-500.0,0.00016712,2]
[351422923,1738565445957,-500.0,0.00016712,2]
[351422925,1738565445967,-500.0,0.00016712,2]
[351422927,1738565445977,-695.9,0.00016712,2]
[351422928,1738565445986,-711.02,0.00016712,2]
[351422929,1738565445996,-500.0,0.00016712,2]
[351422931,1738565446006,-500.0,0.00016712,2]
[351422933,1738565446015,-500.0,0.00016712,2]
[351422935,1738565446024,-317.01058897,0.00016712,2]
[351422936,1738565446034,-500.0,0.00016712,2]
[351422938,1738565446043,-500.0,0.00016712,2]
[351422939,1738565446052,-500.0,0.00016712,2]
[351422940,1738565446062,-500.0,0.00016712,2]
[351422941,1738565446076,-500.0,0.00016712,2]
[351422942,1738565446085,-500.0,0.00016712,2]
[351422943,1738565446095,-500.0,0.00016712,2]
[351422944,1738565446105,-500.0,0.00016712,2]
[351422945,1738565446115,-500.0,0.00016712,2]
[351422946,1738565446125,-500.0,0.00016712,2]
[351422947,1738565446134,-500.0,0.00016712,2]
[351422948,1738565446144,-625.2,0.00016712,2]
[351422949,1738565446156,-1250.58,0.00016712,2]
[351422950,1738565446165,-500.0,0.00016712,2]
[351422951,1738565446175,-500.0,0.00016712,2]
[351422952,1738565446184,-596.21,0.00016712,2]
[351422953,1738565446195,-1016.58,0.00016712,2]
[351422954,1738565446204,-570.25,0.00016712,2]
[351422955,1738565446213,-500.0,0.00016712,2]
[351422956,1738565446222,-500.0,0.00016712,2]
[351422957,1738565446231,-500.0,0.00016712,2]
[351422958,1738565446241,-1883.78,0.00016712,2]
[351422960,1738565446251,-500.0,0.00016712,2]
[351422962,1738565446261,-500.0,0.00016712,2]
[351422963,1738565446270,-1448.78,0.00016712,2]
[351422965,1738565446280,-420.63192141,0.00016712,2]
[351422966,1738565446289,-668.4,0.00016712,2]
[351422967,1738565446298,-500.0,0.00016712,2]
[351422968,1738565446307,-500.0,0.00016712,2]
[351422969,1738565446317,-500.0,0.00016712,2]
[351422970,1738565446327,-607.41,0.00016712,2]
[351422971,1738565446336,-1415.73,0.00016712,2]
[351422972,1738565446346,-500.0,0.00016712,2]
[351422973,1738565446355,-778.41,0.00016712,2]
[351422974,1738565446365,-500.0,0.00016712,2]
[351422975,1738565446375,-593.85,0.00016712,2]
[351422976,1738565446385,-9829.46,0.00016712,2]
[351422977,1738565446395,-2244.85,0.00016712,2]
[351422978,1738565446407,-500.0,0.00016712,2]
[351422979,1738565446416,-500.0,0.00016712,2]
[351422980,1738565446426,-500.0,0.00016712,2]
[351422981,1738565446435,-3911.54,0.00016712,2]
[351422982,1738565446445,-849.31,0.00016712,2]
[351422983,1738565446455,-881.63,0.00016712,2]
[351422984,1738565446464,-500.0,0.00016712,2]
[351422985,1738565446473,-500.0,0.00016712,2]
[351422986,1738565446483,-500.0,0.00016712,2]
[351422987,1738565446492,-2454.54,0.00016712,2]
[351422988,1738565446501,-636.05,0.00016712,2]
[351422989,1738565446511,-500.0,0.00016712,2]
[351422990,1738565446520,-4059.74,0.00016712,2]
[351422991,1738565446530,-500.0,0.00016712,2]
[351422992,1738565446539,-500.0,0.00016712,2]
[351422993,1738565446548,-500.0,0.00016712,2]
[351422994,1738565446558,-500.0,0.00016712,2]
[351422995,1738565446567,-1042.23,0.00016712,2]
[351422996,1738565446577,-500.0,0.00016712,2]
[351422997,1738565446587,-500.0,0.00016712,2]
[351422998,1738565446596,-500.0,0.00016712,2]
[351422999,1738565446606,-3424.97,0.00016712,2]
[351423000,1738565446615,-500.0,0.00016712,2]
[351423001,1738565446624,-500.0,0.00016712,2]
[351423002,1738565446633,-7985.41,0.00016712,2]
[351423003,1738565446643,-500.0,0.00016712,2]
[351423004,1738565446654,-500.0,0.00016712,2]
[351423005,1738565446663,-500.0,0.00016712,2]
[351423006,1738565446672,-1570.01,0.00016712,2]
[351423007,1738565446683,-500.0,0.00016712,2]
[351423008,1738565446692,-551.74,0.00016712,2]
[351423009,1738565446703,-500.0,0.00016712,2]
[351423010,1738565446713,-625.0,0.00016712,2]
[351423011,1738565446722,-1313.25,0.00016712,2]
[351423012,1738565446732,-500.0,0.00016712,2]
[351423013,1738565446741,-576.91,0.00016712,2]
[351423014,1738565446751,-500.0,0.00016712,2]
[351423015,1738565446760,-500.0,0.00016712,2]
[351423016,1738565446770,-565.2,0.00016712,2]
[351423017,1738565446779,-500.0,0.00016712,2]
[351423018,1738565446789,-500.0,0.00016712,2]
[351423019,1738565446798,-500.0,0.00016712,2]
[351423020,1738565446808,-66341.79,0.00016712,2]
[351423021,1738565446818,-500.0,0.00016712,2]
[351423022,1738565446828,-229.95860403,0.00016712,2]
[351423023,1738565446837,-546.87,0.00016712,2]
[351423024,1738565446847,-500.0,0.00016712,2]
[351423025,1738565446856,-500.0,0.00016712,2]
[351423026,1738565446866,-252.06002657,0.00016712,2]
[351423027,1738565446875,-500.0,0.00016712,2]
[351423028,1738565446885,-1300.48,0.00016712,2]
[351423029,1738565446894,-500.0,0.00016712,2]
[351423030,1738565446904,-500.0,0.00016712,2]
[351423031,1738565446914,-500.0,0.00016712,2]
[351423032,1738565446923,-563.18,0.00016712,2]
[351423033,1738565446933,-500.0,0.00016712,2]
[351423034,1738565446942,-773.54,0.00016712,2]
[351423035,1738565446952,-500.0,0.00016712,2]
[351423036,1738565446961,-500.0,0.00016712,2]
[351423037,1738565446970,-1460.69,0.00016712,2]
[351423038,1738565446980,-500.0,0.00016712,2]
[351423039,1738565446989,-522.16580406,0.00016712,2]
[351423040,1738565446999,-500.0,0.00016712,2]
[351423041,1738565447008,-781.25,0.00016712,2]
[351423042,1738565447017,-500.0,0.00016712,2]
[351423043,1738565447026,-500.0,0.00016712,2]
[351423044,1738565447036,-500.0,0.00016712,2]
[351423045,1738565447045,-500.0,0.00016712,2]
[351423046,1738565447055,-830.03,0.00016712,2]
[351423047,1738565447064,-500.0,0.00016712,2]
[351423048,1738565447074,-2301.16,0.00016712,2]
[351423049,1738565447086,-500.0,0.00016712,2]
[351423050,1738565447095,-500.0,0.00016712,2]
[351423051,1738565447104,-6082.07,0.00016712,2]
[351423052,1738565447113,-500.0,0.00016712,2]
[351423053,1738565447123,-500.0,0.00016712,2]
[351423054,1738565447132,-500.0,0.00016712,2]
[351423055,1738565447142,-1221.72,0.00016712,2]
[351423056,1738565447154,-500.0,0.00016712,2]
[351423057,1738565447165,-500.0,0.00016712,2]
[351423058,1738565447174,-3130.13,0.00016712,2]
[351423060,1738565447183,-515.62,0.00016712,2]
[351423061,1738565447193,-500.0,0.00016712,2]
[351423062,1738565447203,-2749.25,0.00016712,2]
[351423063,1738565447212,-641.92,0.00016712,2]
[351423064,1738565447222,-757.87,0.00016712,2]
[351423065,1738565447231,-500.0,0.00016712,2]
[351423066,1738565447241,-500.0,0.00016712,2]
[351423067,1738565447251,-500.0,0.00016712,2]
[351423068,1738565447260,-628.82,0.00016712,2]
[351423069,1738565447269,-845.02,0.00016712,2]
[351423070,1738565447279,-2803.11,0.00016712,2]
[351423071,1738565447288,-1000.0,0.00016712,7]
[351423072,1738565447298,-500.0,0.00016712,2]
[351423073,1738565447308,-500.0,0.00016712,2]
[351423074,1738565447318,-500.0,0.00016712,2]
[351423075,1738565447327,-500.0,0.00016712,2]
[351423076,1738565447338,-681.79,0.00016712,2]
[351423077,1738565447349,-500.0,0.00016712,2]
[351423078,1738565447358,-1102.36,0.00016712,2]
[351423079,1738565447368,-500.0,0.00016712,2]
[351423080,1738565447378,-500.0,0.00016712,2]
[351423081,1738565447387,-604.83,0.00016712,2]
[351423082,1738565447397,-500.0,0.00016712,2]
[351423083,1738565447410,-6231.37845344,0.00016785,2]
[351423084,1738565447419,-515.6711881,0.00016795,2]
[351423085,1738565447429,-151.0,0.000168,2]
[351423086,1738565447438,-151.0,0.000168,2]
[351423087,1738565447448,-16075.58,0.000168,2]
[351423088,1738565447457,-15816.21,0.000168,2]
[351423089,1738565447467,-151.0,0.000168,2]
[351423090,1738565447477,-151.0,0.000168,2]
[351423091,1738565447487,-151.0,0.000168,2]
[351423092,1738565447496,-38750.93624399,0.00016849,5]
[351423093,1738565447505,-151.0,0.00016849,2]
[351423094,1738565447515,-838.457006,0.00016849,2]
[351423095,1738565447526,-151.0,0.00016849,2]
[351423096,1738565447536,-838.457006,0.00016849,2]
[351423097,1738565447546,-151.0,0.00016849,2]
[351423098,1738565447556,-634.181509,0.00016849,2]
[351423099,1738565447565,-634.181509,0.00016849,2]
[351423100,1738565447575,-500.0,0.00016849,2]
[351423101,1738565447584,-500.0,0.00016849,2]
[351423102,1738565447594,-500.0,0.00016849,2]
[351423103,1738565447603,-614.32,0.00016849,2]
[351423104,1738565447612,-500.0,0.00016849,2]
[351423105,1738565447622,-500.0,0.00016849,2]
[351423106,1738565447631,-500.0,0.00016849,2]
[351423107,1738565447641,-500.0,0.00016849,2]
[351423108,1738565447654,-500.0,0.00016849,2]
[351423109,1738565447663,-500.0,0.00016849,2]
[351423110,1738565447673,-500.0,0.00016849,2]
[351423111,1738565447682,-500.0,0.00016849,2]
[351423112,1738565447692,-500.0,0.00016849,2]
[351423113,1738565447701,-302.89789683,0.00016849,2]
[351423114,1738565447711,-432.47261537,0.00016849,2]
[351423115,1738565447721,-500.0,0.00016849,2]
[351423116,1738565447731,-500.0,0.00016849,2]
[351423117,1738565447740,-500.0,0.00016849,2]
[351423118,1738565447751,-500.0,0.00016849,2]
[351423119,1738565447760,-715.32,0.00016849,2]
[351423120,1738565447770,-500.0,0.00016849,2]
[351423121,1738565447779,-500.0,0.00016849,2]
[351423122,1738565447789,-500.0,0.00016849,2]
[351423123,1738565447798,-500.0,0.00016849,2]
[351423124,1738565447808,-500.0,0.00016849,2]
[351423125,1738565447817,-520.60079694,0.00016849,2]
[351423126,1738565447827,-500.0,0.00016849,2]
[351423127,1738565447836,-500.0,0.00016849,2]
[351423128,1738565447846,-500.0,0.00016849,2]
[351423129,1738565447855,-500.0,0.00016849,2]
[351423130,1738565447866,-500.0,0.00016849,2]
[351423131,1738565447877,-500.0,0.00016849,2]
[351423132,1738565447886,-500.0,0.00016849,2]
[351423133,1738565447896,-500.0,0.00016849,2]
[351423134,1738565448010,-500.0,0.00016849,2]
[351423135,1738565448022,-500.0,0.00016849,2]
[351423136,1738565448032,-500.0,0.00016849,2]
[351423137,1738565448041,-500.0,0.00016849,2]
[351423138,1738565448051,-610.32,0.00016849,2]
[351423139,1738565448061,-500.0,0.00016849,2]
[351423140,1738565448074,-500.0,0.00016849,2]
[351423141,1738565448084,-500.0,0.00016849,2]
[351423142,1738565448094,-500.0,0.00016849,2]
[351423143,1738565448103,-500.0,0.00016849,2]
[351423144,1738565448114,-500.0,0.00016849,2]
[351423145,1738565448123,-534.91,0.00016849,2]
[351423146,1738565448133,-986.36,0.00016849,2]
[351423147,1738565448142,-480.89749494,0.00016849,2]
[351423148,1738565448153,-500.0,0.00016849,2]
[351423149,1738565448164,-500.0,0.00016849,2]
[351423150,1738565448173,-500.0,0.00016849,2]
[351423151,1738565448183,-500.0,0.00016849,2]
[351423152,1738565448192,-859.15,0.00016849,2]
[351423153,1738565448202,-500.0,0.00016849,2]
[351423154,1738565448211,-500.0,0.00016849,2]
[351423155,1738565448221,-500.0,0.00016849,2]
[351423156,1738565448230,-500.0,0.00016849,2]
[351423157,1738565448239,-500.0,0.00016849,2]
[351423158,1738565448249,-441.37060608,0.00016849,2]
[351423159,1738565448259,-500.0,0.00016849,2]
[351423160,1738565448268,-500.0,0.00016849,2]
[351423161,1738565448278,-500.0,0.00016849,2]
[351423162,1738565448288,-500.0,0.00016849,2]
[351423163,1738565448298,-500.0,0.00016849,2]
[351423164,1738565448307,-500.0,0.00016849,2]
[351423165,1738565448316,-500.0,0.00016849,2]
[351423166,1738565448326,-500.0,0.00016849,2]
[351423167,1738565448335,-662.49,0.00016849,2]
[351423168,1738565448345,-500.0,0.00016849,2]
[351423169,1738565448354,-479.23104558,0.00016849,2]
[351423170,1738565448364,-689.94,0.00016849,2]
[351423171,1738565448374,-500.0,0.00016849,2]
[351423172,1738565448383,-380.67984277,0.00016849,2]
[351423173,1738565448392,-206.88969229,0.00016849,2]
[351423174,1738565448404,-1084.65,0.00016849,2]
[351423175,1738565448414,-559.51659852,0.00016849,2]
[351423176,1738565448423,-500.0,0.00016849,2]
[351423177,1738565448432,-500.0,0.00016849,2]
[351423178,1738565448442,-511.14,0.00016849,2]
[351423179,1738565448451,-500.0,0.00016849,2]
[351423180,1738565448461,-500.0,0.00016849,2]
[351423181,1738565448471,-634.77,0.00016849,2]
[351423182,1738565448480,-598.39,0.00016849,2]
[351423183,1738565448489,-500.0,0.00016849,2]
[351423184,1738565448499,-500.0,0.00016849,2]
[351423185,1738565448508,-500.0,0.00016849,2]
[351423186,1738565448517,-500.0,0.00016849,2]
[351423187,1738565448526,-500.0,0.00016849,2]
[351423188,1738565448535,-695.9,0.00016849,2]
[351423189,1738565448544,-711.02,0.00016849,2]
[351423190,1738565448554,-500.0,0.00016849,2]
[351423191,1738565448563,-500.0,0.00016849,2]
[351423192,1738565448572,-500.0,0.00016849,2]
[351423193,1738565448582,-500.0,0.00016849,2]
[351423194,1738565448592,-500.0,0.00016849,2]
[351423195,1738565448601,-500.0,0.00016849,2]
[351423196,1738565448611,-500.0,0.00016849,2]
[351423197,1738565448621,-500.0,0.00016849,2]
[351423198,1738565448630,-500.0,0.00016849,2]
[351423199,1738565448640,-500.0,0.00016849,2]
[351423200,1738565448652,-500.0,0.00016849,2]
[351423201,1738565448662,-500.0,0.00016849,2]
[351423202,1738565448671,-500.0,0.00016849,2]
[351423203,1738565448681,-625.2,0.00016849,2]
[351423204,1738565448690,-1250.58,0.00016849,2]
[351423205,1738565448701,-500.0,0.00016849,2]
[351423206,1738565448710,-486.44250239,0.00016849,2]
[351423207,1738565448720,-596.21,0.00016849,2]
[351423208,1738565448731,-1016.58,0.00016849,2]
[351423209,1738565448740,-570.25,0.00016849,2]
[351423210,1738565448750,-500.0,0.00016849,2]
[351423211,1738565448760,-500.0,0.00016849,2]
[351423212,1738565448770,-500.0,0.00016849,2]
[351423213,1738565448780,-1883.78,0.00016849,2]
[351423214,1738565448789,-500.0,0.00016849,2]
[351423215,1738565448799,-500.0,0.00016849,2]
[351423216,1738565448808,-1448.78,0.00016849,2]
[351423217,1738565448818,-668.4,0.00016849,2]
[351423218,1738565448827,-500.0,0.00016849,2]
[351423219,1738565448836,-500.0,0.00016849,2]
[351423220,1738565448846,-500.0,0.00016849,2]
[351423221,1738565448855,-607.41,0.00016849,2]
[351423222,1738565448865,-1415.73,0.00016849,2]
[351423223,1738565448874,-500.0,0.00016849,2]
[351423224,1738565448884,-778.41,0.00016849,2]
[351423225,1738565448894,-500.0,0.00016849,2]
[351423226,1738565448906,-593.85,0.00016849,2]
[351423227,1738565448916,-9829.46,0.00016849,2]
[351423228,1738565448926,-2244.85,0.00016849,2]
[351423229,1738565448936,-500.0,0.00016849,2]
[351423230,1738565448945,-500.0,0.00016849,2]
[351423231,1738565448955,-500.0,0.00016849,2]
[351423232,1738565448964,-3911.54,0.00016849,2]
[351423233,1738565448975,-849.31,0.00016849,2]
[351423234,1738565448985,-881.63,0.00016849,2]
[351423235,1738565448995,-500.0,0.00016849,2]
[351423236,1738565449004,-500.0,0.00016849,2]
[351423237,1738565449014,-2454.54,0.00016849,2]
[351423238,1738565449023,-636.05,0.00016849,2]
[351423239,1738565449032,-500.0,0.00016849,2]
[351423240,1738565449043,-4059.74,0.00016849,2]
[351423241,1738565449052,-500.0,0.00016849,2]
[351423242,1738565449061,-500.0,0.00016849,2]
[351423243,1738565449072,-500.0,0.00016849,2]
[351423244,1738565449083,-500.0,0.00016849,2]
[351423245,1738565449093,-1042.23,0.00016849,2]
[351423246,1738565449103,-500.0,0.00016849,2]
[351423247,1738565449112,-500.0,0.00016849,2]
[351423248,1738565449123,-155.33687625,0.00016849,2]
[351423249,1738565449132,-3424.97,0.00016849,2]
[351423250,1738565449142,-500.0,0.00016849,2]
[351423251,1738565449154,-500.0,0.00016849,2]
[351423252,1738565449164,-7985.41,0.00016849,2]
[351423253,1738565449174,-500.0,0.00016849,2]
[351423254,1738565449183,-500.0,0.00016849,2]
[351423255,1738565449192,-500.0,0.00016849,2]
[351423256,1738565449201,-1570.01,0.00016849,2]
[351423257,1738565449211,-500.0,0.00016849,2]
[351423258,1738565449220,-551.74,0.00016849,2]
[351423259,1738565449229,-500.0,0.00016849,2]
[351423260,1738565449238,-625.0,0.00016849,2]
[351423261,1738565449248,-1313.25,0.00016849,2]
[351423262,1738565449257,-500.0,0.00016849,2]
[351423263,1738565449267,-576.91,0.00016849,2]
[351423264,1738565449276,-500.0,0.00016849,2]
[351423265,1738565449285,-500.0,0.00016849,2]
[351423266,1738565449295,-565.2,0.00016849,2]
[351423267,1738565449304,-500.0,0.00016849,2]
[351423268,1738565449313,-293.93469593,0.00016849,2]
[351423269,1738565449323,-500.0,0.00016849,2]
[351423270,1738565449332,-66341.79,0.00016849,2]
[351423271,1738565449341,-500.0,0.00016849,2]
[351423272,1738565449350,-546.87,0.00016849,2]
[351423273,1738565449360,-500.0,0.00016849,2]
[351423274,1738565449370,-500.0,0.00016849,2]
[351423275,1738565449380,-500.0,0.00016849,2]
[351423276,1738565449389,-1300.48,0.00016849,2]
[351423277,1738565449402,-500.0,0.00016849,2]
[351423278,1738565449411,-500.0,0.00016849,2]
[351423279,1738565449421,-500.0,0.00016849,2]
[351423280,1738565449431,-563.18,0.00016849,2]
[351423281,1738565449440,-500.0,0.00016849,2]